[Event "FIDE Women World Blitz 2021"]
[Site "Warsaw"]
[Date "2021.12.29"]
[Round "7.9"]
[White "Nomin-Erdene, Davaademberel"]
[Black "Kosteniuk, Alexandra"]
[Result "0-1"]
[ECO "B15"]
[WhiteElo "2188"]
[BlackElo "2518"]
[Annotator "ChessBase"]
[PlyCount "92"]
[EventDate "2021.12.29"]
[EventType "swiss"]
[EventCountry "POL"]
[Tiebreak "Cut1 Buchholz"]
[SourceTitle "playchess.com"]
[Source "ChessBase"]
[SourceQuality "1"]
[TimeControl "180+2"]

1. e4 {[%emt 0:00:01]} c6 {[%emt 0:00:00]} 2. d4 {[%emt 0:00:02]} d5 {[%emt 0:
00:01]} 3. Nc3 {[%emt 0:00:01]} dxe4 4. Nxe4 {[%emt 0:00:01]} Nf6 {[%emt 0:00:
02]} 5. Nxf6+ {[%emt 0:00:02]} exf6 {[%emt 0:00:01]} 6. c3 {[%emt 0:00:01]} Bd6
{[%emt 0:00:03]} 7. Bd3 {[%emt 0:00:01]} O-O {[%emt 0:00:03]} 8. Ne2 {[%emt 0:
00:01]} h5 {[%emt 0:00:06]} 9. Ng3 {[%emt 0:00:34]} Re8+ {[%emt 0:00:02]} 10.
Be3 {[%emt 0:00:02]} Bg4 {[%emt 0:00:09]} 11. Qd2 {[%emt 0:00:10]} h4 {[%emt 0:
00:24]} 12. Ne4 {[%emt 0:00:01]} Bc7 {[%emt 0:00:15]} 13. f3 {[%emt 0:00:27]}
Bh5 {[%emt 0:00:06]} 14. O-O-O {[%emt 0:00:15]} Nd7 {[%emt 0:00:07]} 15. Qf2 {
[%emt 0:00:22]} Bg6 {[%emt 0:00:09]} 16. Qxh4 {[%emt 0:00:06]} f5 {[%emt 0:00:
03]} 17. Bg5 {[%emt 0:00:07]} fxe4 {[%emt 0:00:10]} 18. Bxd8 {[%emt 0:00:09]}
Bxd8 {[%emt 0:00:00]} 19. Qh3 {[%emt 0:00:06]} exd3 {[%emt 0:00:09]} 20. Qxd7 {
[%emt 0:00:02]} d2+ {[%emt 0:00:01]} 21. Rxd2 {[%emt 0:00:06]} Bg5 {[%emt 0:00:
01]} 22. g3 {[%emt 0:00:15]} Re7 {[%emt 0:00:09]} 23. Qg4 {[%emt 0:00:26]}
Bxd2+ 24. Kxd2 {[%emt 0:00:01]} Rae8 {[%emt 0:00:03]} 25. f4 {[%emt 0:00:01]}
Re3 {[%emt 0:00:14]} 26. f5 {[%emt 0:00:10]} Bh7 {[%emt 0:00:03]} 27. Rf1 {
[%emt 0:00:05]} f6 {[%emt 0:00:02]} 28. h4 {[%emt 0:00:02]} Kf8 {[%emt 0:00:20]
} 29. h5 {[%emt 0:00:08]} R8e4 {[%emt 0:00:09]} 30. Rf4 {[%emt 0:00:02]} Re7 {
[%emt 0:00:11]} 31. h6 {[%emt 0:00:04]} gxh6 {[%emt 0:00:16]} 32. Qh5 Bg8 {
[%emt 0:00:14]} 33. Qxh6+ {[%emt 0:00:02]} Ke8 34. Qg6+ {[%emt 0:00:08]} Bf7 {
[%emt 0:00:01]} 35. Qg4 {[%emt 0:00:01]} Bc4 {[%emt 0:00:03]} 36. b3 {[%emt 0:
00:03]} Re2+ {[%emt 0:00:04]} 37. Kc1 {[%emt 0:00:05]} Bd3 {[%emt 0:00:01]} 38.
Rf1 {[%emt 0:00:02]} Rxa2 {[%emt 0:00:08]} 39. Qg8+ {[%emt 0:00:03]} Kd7 40.
Rd1 {[%emt 0:00:03]} Bxf5 {[%emt 0:00:06]} 41. b4 {[%emt 0:00:01]} Rc2+ {
[%emt 0:00:06]} 42. Kb1 {[%emt 0:00:00]} Rxc3+ {[%emt 0:00:00]} 43. Kb2 {
[%emt 0:00:01]} Rc2+ {[%emt 0:00:01]} 44. Kb3 {[%emt 0:00:01]} Re3+ {[%emt 0:
00:02]} 45. Ka4 {[%emt 0:00:03]} b5+ {[%emt 0:00:00]} 46. Ka5 {[%emt 0:00:02]}
Ra3# {[%emt 0:00:01]} 0-1

[Event "FIDE Women World Blitz 2021"]
[Site "Warsaw"]
[Date "2021.12.29"]
[Round "7.10"]
[White "Mammadova, Gulnar"]
[Black "Osmak, Yuliia"]
[Result "1-0"]
[ECO "C00"]
[WhiteElo "2395"]
[BlackElo "2198"]
[Annotator "NA"]
[PlyCount "173"]
[EventDate "2021.12.29"]
[EventType "swiss"]
[EventCountry "POL"]
[Tiebreak "Cut1 Buchholz"]
[SourceTitle "playchess.com"]
[Source "ChessBase"]
[SourceQuality "1"]
[TimeControl "180+2"]

1. e4 {[%emt 0:00:02]} e6 {[%emt 0:00:01]} 2. Qe2 {[%emt 0:00:00]} Nc6 {
[%emt 0:00:15]} 3. Nf3 {[%emt 0:00:04]} d5 {[%emt 0:00:20]} 4. exd5 {[%emt 0:
00:02]} Qxd5 {[%emt 0:00:01]} 5. Nc3 {[%emt 0:00:09]} Qd8 {[%emt 0:00:04]} 6.
Ne4 {[%emt 0:00:22]} Be7 {[%emt 0:00:05]} 7. g3 {[%emt 0:00:19]} Nf6 {[%emt 0:
00:03]} 8. c3 {[%emt 0:00:05]} O-O {[%emt 0:00:15]} 9. d4 {[%emt 0:00:03]} Nxe4
{[%emt 0:00:17]} 10. Qxe4 {[%emt 0:00:01]} Qd5 {[%emt 0:00:02]} 11. Bd3 {
[%emt 0:00:09]} Qxe4+ {[%emt 0:00:03]} 12. Bxe4 {[%emt 0:00:01]} Bd7 {[%emt 0:
00:04]} 13. Bf4 {[%emt 0:00:03]} Bd6 {[%emt 0:00:28]} 14. Ne5 {[%emt 0:00:20]}
Bxe5 {[%emt 0:00:27]} 15. dxe5 {[%emt 0:00:02]} Na5 {[%emt 0:00:08]} 16. O-O-O
{[%emt 0:00:19]} Bc6 {[%emt 0:00:14]} 17. Bxc6 {[%emt 0:00:02]} Nxc6 {[%emt 0:
00:01]} 18. Rd7 {[%emt 0:00:01]} Rac8 {[%emt 0:00:05]} 19. Rhd1 {[%emt 0:00:09]
} Rfd8 {[%emt 0:00:04]} 20. b4 {[%emt 0:00:08]} Rxd7 {[%emt 0:00:04]} 21. Rxd7
{[%emt 0:00:01]} a6 {[%emt 0:00:16]} 22. a4 {[%emt 0:00:04]} Kf8 {[%emt 0:00:
04]} 23. b5 {[%emt 0:00:11]} axb5 {[%emt 0:00:07]} 24. axb5 {[%emt 0:00:01]}
Nb8 {[%emt 0:00:05]} 25. Rd1 {[%emt 0:00:18]} Ke8 {[%emt 0:00:08]} 26. Kc2 {
[%emt 0:00:01]} c6 {[%emt 0:00:06]} 27. Rb1 {[%emt 0:00:18]} cxb5 {[%emt 0:00:
01]} 28. Rxb5 Rc7 {[%emt 0:00:00]} 29. Ra5 {[%emt 0:00:06]} Nc6 {[%emt 0:00:02]
} 30. Ra8+ {[%emt 0:00:01]} Kd7 {[%emt 0:00:02]} 31. Rh8 {[%emt 0:00:03]} h6 {
[%emt 0:00:01]} 32. h4 {[%emt 0:00:02]} Nd4+ {[%emt 0:00:03]} 33. Kd3 {[%emt 0:
00:02]} Nf5 {[%emt 0:00:02]} 34. Rg8 {[%emt 0:00:06]} g6 {[%emt 0:00:02]} 35.
Rh8 {[%emt 0:00:07]} h5 {[%emt 0:00:01]} 36. f3 {[%emt 0:00:04]} Kc6 {[%emt 0:
00:02]} 37. Ke4 {[%emt 0:00:09]} Kb5 {[%emt 0:00:01]} 38. g4 {[%emt 0:00:02]}
Nxh4 {[%emt 0:00:02]} 39. gxh5 {[%emt 0:00:01]} gxh5 {[%emt 0:00:01]} 40. Rxh5
{[%emt 0:00:01]} Nf5 {[%emt 0:00:03]} 41. Kd3 {[%emt 0:00:03]} Rd7+ {[%emt 0:
00:02]} 42. Kc2 {[%emt 0:00:01]} Rc7 {[%emt 0:00:02]} 43. Rh1 {[%emt 0:00:04]}
Nd4+ {[%emt 0:00:01]} 44. Kd3 {[%emt 0:00:01]} Nxf3 {[%emt 0:00:02]} 45. Rb1+ {
[%emt 0:00:06]} Kc6 {[%emt 0:00:02]} 46. Rh1 {[%emt 0:00:03]} Kd5 {[%emt 0:00:
05]} 47. Rh3 {[%emt 0:00:01]} Nxe5+ {[%emt 0:00:02]} 48. Kc2 {[%emt 0:00:05]}
f5 {[%emt 0:00:02]} 49. Rh1 {[%emt 0:00:02]} Rc4 {[%emt 0:00:05]} 50. Rd1+ {
[%emt 0:00:08]} Ke4 {[%emt 0:00:00]} 51. Bh6 {[%emt 0:00:01]} Nc6 {[%emt 0:00:
01]} 52. Re1+ {[%emt 0:00:02]} Kd5 {[%emt 0:00:01]} 53. Rd1+ {[%emt 0:00:00]}
Kc5 {[%emt 0:00:03]} 54. Bf8+ {[%emt 0:00:01]} Kb5 {[%emt 0:00:02]} 55. Rb1+ {
[%emt 0:00:01]} Ka6 {[%emt 0:00:02]} 56. Ra1+ {[%emt 0:00:01]} Kb6 {[%emt 0:00:
01]} 57. Rb1+ {[%emt 0:00:01]} Kc7 {[%emt 0:00:01]} 58. Re1 {[%emt 0:00:01]}
Kd7 {[%emt 0:00:02]} 59. Rd1+ {[%emt 0:00:01]} Ke8 {[%emt 0:00:01]} 60. Bd6 {
[%emt 0:00:04]} e5 {[%emt 0:00:02]} 61. Rb1 {[%emt 0:00:03]} Kd7 {[%emt 0:00:
04]} 62. Bf8 {[%emt 0:00:01]} Kc7 {[%emt 0:00:02]} 63. Kd3 {[%emt 0:00:02]} Rh4
{[%emt 0:00:01]} 64. Rg1 {[%emt 0:00:01]} Rh3+ {[%emt 0:00:02]} 65. Kc4 {
[%emt 0:00:00]} Rh4+ {[%emt 0:00:01]} 66. Kb5 {[%emt 0:00:09]} Rh7 {[%emt 0:00:
02]} 67. c4 {[%emt 0:00:03]} Rf7 {[%emt 0:00:02]} 68. Ba3 {[%emt 0:00:02]} f4 {
[%emt 0:00:02]} 69. Bc5 {[%emt 0:00:03]} e4 {[%emt 0:00:02]} 70. Bb6+ {[%emt 0:
00:01]} Kd7 {[%emt 0:00:02]} 71. Kc5 {[%emt 0:00:04]} Ke6 {[%emt 0:00:02]} 72.
Re1 {[%emt 0:00:05]} Kf5 {[%emt 0:00:02]} 73. Kd6 {[%emt 0:00:01]} f3 {[%emt 0:
00:06]} 74. Be3 {[%emt 0:00:01]} Rg7 {[%emt 0:00:03]} 75. Rb1 {[%emt 0:00:01]}
Kg4 {[%emt 0:00:04]} 76. Rg1+ {[%emt 0:00:01]} Kf5 {[%emt 0:00:03]} 77. Rxg7 {
[%emt 0:00:01]} Na5 {[%emt 0:00:00]} 78. Kd5 {[%emt 0:00:02]} Nb3 {[%emt 0:00:
03]} 79. Rf7+ {[%emt 0:00:01]} Kg4 {[%emt 0:00:01]} 80. Kxe4 {[%emt 0:00:02]}
Na5 {[%emt 0:00:03]} 81. Rf4+ {[%emt 0:00:01]} Kg3 {[%emt 0:00:01]} 82. Rxf3+ {
[%emt 0:00:01]} Kg2 {[%emt 0:00:01]} 83. Rf5 {[%emt 0:00:01]} Nxc4 {[%emt 0:00:
01]} 84. Rf8 {[%emt 0:00:02]} Nd6+ {[%emt 0:00:02]} 85. Kd5 {[%emt 0:00:02]}
Nb5 {[%emt 0:00:01]} 86. Bd4 {[%emt 0:00:02]} Kg3 {[%emt 0:00:03]} 87. Rb8 {
[%emt 0:00:06]} 1-0

[Event "FIDE Women World Blitz 2021"]
[Site "Warsaw"]
[Date "2021.12.29"]
[Round "7.10"]
[White "Kolaric, Spela"]
[Black "Zabrzanska, Weronika"]
[Result "1-0"]
[ECO "C56"]
[WhiteElo "2178"]
[BlackElo "1596"]
[Annotator "NA"]
[PlyCount "97"]
[EventDate "2021.12.29"]
[EventType "swiss"]
[EventCountry "POL"]
[Tiebreak "Cut1 Buchholz"]
[SourceTitle "playchess.com"]
[Source "ChessBase"]
[SourceQuality "1"]
[TimeControl "180+2"]

1. e4 {[%emt 0:00:02]} e5 {[%emt 0:00:00]} 2. Nf3 {[%emt 0:00:01]} Nc6 {
[%emt 0:00:01]} 3. d4 {[%emt 0:00:01]} exd4 {[%emt 0:00:01]} 4. Bc4 {[%emt 0:
00:01]} Nf6 {[%emt 0:00:02]} 5. O-O {[%emt 0:00:02]} Nxe4 {[%emt 0:00:12]} 6.
Re1 {[%emt 0:00:02]} d5 {[%emt 0:00:01]} 7. Bxd5 {[%emt 0:00:01]} Qxd5 {
[%emt 0:00:01]} 8. Nc3 {[%emt 0:00:02]} Qh5 {[%emt 0:00:06]} 9. Nxe4 {[%emt 0:
00:02]} Be6 {[%emt 0:00:26]} 10. Neg5 {[%emt 0:00:12]} O-O-O {[%emt 0:00:19]}
11. Nxe6 {[%emt 0:00:03]} fxe6 {[%emt 0:00:00]} 12. Rxe6 {[%emt 0:00:06]} Bc5 {
[%emt 0:00:04]} 13. Bd2 {[%emt 0:00:23]} Rhe8 {[%emt 0:00:17]} 14. Qe2 {
[%emt 0:00:09]} h6 {[%emt 0:00:26]} 15. Re1 {[%emt 0:00:03]} Rf8 {[%emt 0:00:
02]} 16. a3 {[%emt 0:00:33]} g5 {[%emt 0:00:06]} 17. b4 {[%emt 0:00:04]} Bb6 {
[%emt 0:00:21]} 18. Qd3 {[%emt 0:00:30]} g4 {[%emt 0:00:12]} 19. Rxh6 {[%emt 0:
00:01]} Qf7 {[%emt 0:00:11]} 20. Rh7 {[%emt 0:00:10]} Qf5 {[%emt 0:00:35]} 21.
Qxf5+ {[%emt 0:00:08]} Rxf5 {[%emt 0:00:01]} 22. Nh4 {[%emt 0:00:05]} Rff8 {
[%emt 0:00:09]} 23. Ng6 {[%emt 0:00:19]} Rf6 {[%emt 0:00:10]} 24. Nf4 {[%emt 0:
00:11]} Rdf8 {[%emt 0:00:00]} 25. Nd3 {[%emt 0:00:01]} a5 {[%emt 0:00:04]} 26.
b5 {[%emt 0:00:03]} Nd8 {[%emt 0:00:01]} 27. Bg5 {[%emt 0:00:05]} Rf5 {[%emt 0:
00:03]} 28. Bxd8 {[%emt 0:00:09]} Kxd8 {[%emt 0:00:01]} 29. a4 {[%emt 0:00:03]}
c6 {[%emt 0:00:02]} 30. bxc6 {[%emt 0:00:06]} bxc6 {[%emt 0:00:01]} 31. Rh6 {
[%emt 0:00:03]} Kc7 {[%emt 0:00:04]} 32. Re7+ {[%emt 0:00:01]} Kd8 {[%emt 0:00:
01]} 33. Rb7 {[%emt 0:00:01]} Bc7 {[%emt 0:00:03]} 34. Rxc6 {[%emt 0:00:02]}
Kc8 {[%emt 0:00:04]} 35. Rcxc7+ {[%emt 0:00:02]} Kd8 {[%emt 0:00:01]} 36. Rd7+
{[%emt 0:00:01]} Kc8 {[%emt 0:00:01]} 37. Rdc7+ {[%emt 0:00:06]} Kd8 {[%emt 0:
00:01]} 38. Rc4 {[%emt 0:00:01]} R5f6 {[%emt 0:00:03]} 39. Rxd4+ {[%emt 0:00:
03]} Kc8 {[%emt 0:00:00]} 40. Rb5 {[%emt 0:00:02]} Re8 {[%emt 0:00:03]} 41. g3
{[%emt 0:00:00]} Re7 {[%emt 0:00:04]} 42. Rxa5 {[%emt 0:00:02]} Kb7 {[%emt 0:
00:01]} 43. Rb4+ {[%emt 0:00:01]} Kc8 {[%emt 0:00:02]} 44. Rab5 {[%emt 0:00:03]
} Kd7 {[%emt 0:00:02]} 45. Rb7+ {[%emt 0:00:01]} Ke6 {[%emt 0:00:01]} 46. Re4+
Kf5 {[%emt 0:00:04]} 47. Rexe7 {[%emt 0:00:01]} Ra6 {[%emt 0:00:01]} 48. Rb5+ {
[%emt 0:00:02]} Kf6 {[%emt 0:00:02]} 49. Rc7 {[%emt 0:00:25]} 1-0

[Event "FIDE Women World Blitz 2021"]
[Site "Warsaw"]
[Date "2021.12.29"]
[Round "7.11"]
[White "Maltsevskaya, Aleksandra"]
[Black "Gaboyan, Susanna"]
[Result "1-0"]
[ECO "B33"]
[WhiteElo "2411"]
[BlackElo "2253"]
[Annotator "NA"]
[PlyCount "54"]
[EventDate "2021.12.29"]
[EventType "swiss"]
[EventCountry "POL"]
[Tiebreak "Cut1 Buchholz"]
[SourceTitle "playchess.com"]
[Source "ChessBase"]
[SourceQuality "1"]
[TimeControl "180+2"]

1. e4 {[%emt 0:00:01]} c5 {[%emt 0:00:00]} 2. Nf3 {[%emt 0:00:02]} Nc6 {
[%emt 0:00:01]} 3. d4 {[%emt 0:00:01]} cxd4 {[%emt 0:00:02]} 4. Nxd4 {[%emt 0:
00:01]} Nf6 {[%emt 0:00:01]} 5. Nc3 {[%emt 0:00:01]} e5 {[%emt 0:00:01]} 6.
Ndb5 {[%emt 0:00:00]} d6 {[%emt 0:00:01]} 7. Bg5 {[%emt 0:00:02]} a6 {[%emt 0:
00:01]} 8. Na3 {[%emt 0:00:01]} b5 {[%emt 0:00:00]} 9. Nd5 {[%emt 0:00:01]} Be7
{[%emt 0:00:01]} 10. Bxf6 {[%emt 0:00:02]} Bxf6 {[%emt 0:00:02]} 11. c4 {
[%emt 0:00:01]} b4 {[%emt 0:00:02]} 12. Nc2 {[%emt 0:00:00]} O-O {[%emt 0:00:
11]} 13. b3 {[%emt 0:00:03]} a5 {[%emt 0:00:05]} 14. g3 {[%emt 0:00:01]} Bg5 {
[%emt 0:00:09]} 15. h4 {[%emt 0:00:01]} Bh6 {[%emt 0:00:01]} 16. Bh3 {[%emt 0:
00:01]} Be6 {[%emt 0:00:46]} 17. Kf1 {[%emt 0:00:02]} Ra7 {[%emt 0:00:05]} 18.
Kg2 {[%emt 0:00:03]} g6 {[%emt 0:00:18]} 19. h5 {[%emt 0:00:10]} g5 {[%emt 0:
00:19]} 20. Qf3 {[%emt 0:00:31]} Qc8 {[%emt 0:00:45]} 21. Qf6 {[%emt 0:00:42]}
Bxh3+ {[%emt 0:00:03]} 22. Rxh3 {[%emt 0:00:02]} Qe6 {[%emt 0:00:03]} 23. Rd1 {
[%emt 0:00:15]} Rd7 {[%emt 0:00:33]} 24. Rhh1 {[%emt 0:00:06]} Re8 {[%emt 0:00:
14]} 25. Nce3 {[%emt 0:00:13]} Nd4 {[%emt 0:00:05]} 26. Nf5 {[%emt 0:00:06]}
Nxf5 {[%emt 0:00:01]} 27. exf5 {[%emt 0:00:01]} Qxf6 {[%emt 0:00:03]} 1-0

[Event "FIDE Women World Blitz 2021"]
[Site "Warsaw"]
[Date "2021.12.29"]
[Round "7.11"]
[White "Da Silva, Cibele Florencio"]
[Black "Malicka, Maria"]
[Result "0-1"]
[ECO "B10"]
[WhiteElo "1405"]
[BlackElo "2307"]
[Annotator "NA"]
[PlyCount "65"]
[EventDate "2021.12.29"]
[EventType "swiss"]
[EventCountry "POL"]
[Tiebreak "Cut1 Buchholz"]
[SourceTitle "playchess.com"]
[Source "ChessBase"]
[SourceQuality "1"]
[TimeControl "180+2"]

1. e4 {[%emt 0:00:02]} c6 {[%emt 0:00:01]} 2. Nf3 {[%emt 0:00:10]} d5 {[%emt 0:
00:01]} 3. d3 {[%emt 0:00:05]} Bg4 {[%emt 0:00:04]} 4. Be2 {[%emt 0:00:02]} e6
{[%emt 0:00:03]} 5. h3 {[%emt 0:00:02]} Bxf3 {[%emt 0:00:03]} 6. Bxf3 {[%emt 0:
00:02]} Nd7 {[%emt 0:00:01]} 7. Nc3 {[%emt 0:00:02]} Ngf6 {[%emt 0:00:03]} 8.
Bg5 {[%emt 0:00:02]} h6 {[%emt 0:00:03]} 9. Bxf6 {[%emt 0:00:09]} Nxf6 {
[%emt 0:00:01]} 10. e5 {[%emt 0:00:02]} Nd7 {[%emt 0:00:03]} 11. d4 {[%emt 0:
00:02]} Bb4 {[%emt 0:00:08]} 12. Qd2 {[%emt 0:00:02]} c5 {[%emt 0:00:12]} 13.
a3 {[%emt 0:00:01]} cxd4 {[%emt 0:00:36]} 14. axb4 {[%emt 0:00:13]} dxc3 {
[%emt 0:00:01]} 15. Qxc3 {[%emt 0:00:03]} Rc8 {[%emt 0:00:02]} 16. Qd4 {
[%emt 0:00:37]} Rxc2 {[%emt 0:00:07]} 17. O-O {[%emt 0:00:15]} a6 {[%emt 0:00:
03]} 18. Rac1 {[%emt 0:00:08]} Rxc1 {[%emt 0:00:02]} 19. Rxc1 {[%emt 0:00:01]}
O-O {[%emt 0:00:02]} 20. Be2 {[%emt 0:00:11]} Qb8 {[%emt 0:00:15]} 21. f4 {
[%emt 0:00:04]} Rc8 {[%emt 0:00:01]} 22. Rxc8+ {[%emt 0:00:09]} Qxc8 {[%emt 0:
00:00]} 23. Kh2 {[%emt 0:00:17]} Qc6 {[%emt 0:00:07]} 24. Qd3 {[%emt 0:00:27]}
Nb6 {[%emt 0:00:13]} 25. Bd1 {[%emt 0:00:05]} Qc4 {[%emt 0:00:12]} 26. Qd2 {
[%emt 0:00:13]} d4 {[%emt 0:00:15]} 27. Be2 {[%emt 0:00:03]} Qd5 {[%emt 0:00:
05]} 28. Qd3 {[%emt 0:00:16]} Nd7 {[%emt 0:00:16]} 29. Bf3 {[%emt 0:00:02]} Qb5
{[%emt 0:00:08]} 30. Qc2 {[%emt 0:00:09]} Qxb4 {[%emt 0:00:28]} 31. Qc8+ {
[%emt 0:00:03]} Nf8 {[%emt 0:00:01]} 32. Be4 {[%emt 0:00:03]} d3 {[%emt 0:00:
05]} 33. Bxd3 {[%emt 0:00:04]} 0-1

[Event "FIDE Women World Blitz 2021"]
[Site "Warsaw"]
[Date "2021.12.29"]
[Round "7.12"]
[White "Kulon, Klaudia"]
[Black "Balajayeva, Khanim"]
[Result "0-1"]
[ECO "E05"]
[WhiteElo "2328"]
[BlackElo "2369"]
[Annotator "NA"]
[PlyCount "92"]
[EventDate "2021.12.29"]
[EventType "swiss"]
[EventCountry "POL"]
[Tiebreak "Cut1 Buchholz"]
[SourceTitle "playchess.com"]
[Source "ChessBase"]
[SourceQuality "1"]
[TimeControl "180+2"]

1. c4 {[%emt 0:00:01]} e6 {[%emt 0:00:01]} 2. g3 {[%emt 0:00:01]} d5 {[%emt 0:
00:01]} 3. Bg2 {[%emt 0:00:01]} Nf6 {[%emt 0:00:01]} 4. Nf3 {[%emt 0:00:01]}
Be7 {[%emt 0:00:04]} 5. O-O {[%emt 0:00:01]} O-O {[%emt 0:00:01]} 6. d4 {
[%emt 0:00:03]} dxc4 {[%emt 0:00:02]} 7. Qc2 {[%emt 0:00:01]} a6 {[%emt 0:00:
02]} 8. Qxc4 {[%emt 0:00:09]} b5 {[%emt 0:00:01]} 9. Qc2 {[%emt 0:00:01]} Bb7 {
[%emt 0:00:00]} 10. Bd2 {[%emt 0:00:01]} Be4 {[%emt 0:00:12]} 11. Qc1 {[%emt 0:
00:01]} Bb7 {[%emt 0:00:07]} 12. a4 {[%emt 0:00:15]} b4 {[%emt 0:00:10]} 13. a5
{[%emt 0:00:02]} Nbd7 {[%emt 0:00:03]} 14. Bf4 {[%emt 0:00:13]} c5 {[%emt 0:00:
02]} 15. dxc5 {[%emt 0:00:02]} Bxc5 {[%emt 0:00:17]} 16. Be3 {[%emt 0:00:03]}
Rc8 {[%emt 0:00:04]} 17. Bxc5 {[%emt 0:00:02]} Nxc5 {[%emt 0:00:01]} 18. Qd1 {
[%emt 0:00:18]} Qe7 {[%emt 0:00:05]} 19. Qe1 {[%emt 0:00:17]} Nb3 {[%emt 0:00:
31]} 20. Ra4 {[%emt 0:00:01]} Nd5 {[%emt 0:00:13]} 21. e4 {[%emt 0:00:01]} Bc6
{[%emt 0:00:17]} 22. exd5 {[%emt 0:00:28]} Bxa4 {[%emt 0:00:01]} 23. Qe3 {
[%emt 0:00:01]} Qc5 {[%emt 0:00:07]} 24. Qf4 {[%emt 0:00:08]} exd5 {[%emt 0:00:
06]} 25. Ne5 {[%emt 0:00:10]} Nd4 {[%emt 0:00:07]} 26. Kh1 {[%emt 0:00:07]} Ne6
{[%emt 0:00:04]} 27. Qh4 {[%emt 0:00:06]} Bb5 {[%emt 0:00:05]} 28. Rg1 {
[%emt 0:00:09]} Qxf2 {[%emt 0:00:06]} 29. Qxb4 {[%emt 0:00:03]} Rc2 {[%emt 0:
00:14]} 30. Ng4 {[%emt 0:00:10]} Qe2 {[%emt 0:00:09]} 31. Nc3 {[%emt 0:00:01]}
Qc4 {[%emt 0:00:03]} 32. Nxd5 {[%emt 0:00:17]} Qxb4 {[%emt 0:00:03]} 33. Nxb4 {
[%emt 0:00:01]} Rc4 {[%emt 0:00:01]} 34. Nxa6 {[%emt 0:00:07]} Rxg4 {[%emt 0:
00:06]} 35. h3 {[%emt 0:00:14]} Ra4 {[%emt 0:00:04]} 36. Bb7 {[%emt 0:00:02]}
Rxa5 {[%emt 0:00:02]} 37. Nb4 {[%emt 0:00:01]} h6 {[%emt 0:00:10]} 38. Rc1 {
[%emt 0:00:03]} Bd7 {[%emt 0:00:03]} 39. Bf3 {[%emt 0:00:01]} Rb5 {[%emt 0:00:
01]} 40. Nd3 {[%emt 0:00:02]} Nd4 {[%emt 0:00:01]} 41. Bg2 {[%emt 0:00:00]} Bf5
{[%emt 0:00:02]} 42. Rd1 {[%emt 0:00:08]} Ne6 {[%emt 0:00:02]} 43. g4 {[%emt 0:
00:05]} Bh7 {[%emt 0:00:03]} 44. Bc6 {[%emt 0:00:03]} Rb6 {[%emt 0:00:01]} 45.
Bd5 {[%emt 0:00:01]} Rd8 {[%emt 0:00:04]} 46. Ne5 {[%emt 0:00:05]} Rbd6 {
[%emt 0:00:05]} 0-1

[Event "FIDE Women World Blitz 2021"]
[Site "Warsaw"]
[Date "2021.12.29"]
[Round "7.12"]
[White "Budkiewicz, Magdalena"]
[Black "Szczotka, Klara"]
[Result "0-1"]
[ECO "B17"]
[WhiteElo "1624"]
[BlackElo "1584"]
[Annotator "NA"]
[PlyCount "136"]
[EventDate "2021.12.29"]
[EventType "swiss"]
[EventCountry "POL"]
[Tiebreak "Cut1 Buchholz"]
[SourceTitle "playchess.com"]
[Source "ChessBase"]
[SourceQuality "1"]
[TimeControl "180+2"]

1. e4 {[%emt 0:00:01]} c6 {[%emt 0:00:02]} 2. d4 {[%emt 0:00:02]} d5 {[%emt 0:
00:01]} 3. Nc3 {[%emt 0:00:01]} dxe4 {[%emt 0:00:01]} 4. Nxe4 {[%emt 0:00:01]}
Nd7 {[%emt 0:00:01]} 5. Nf3 {[%emt 0:00:25]} Ngf6 {[%emt 0:00:01]} 6. Nxf6+ {
[%emt 0:00:01]} Nxf6 {[%emt 0:00:01]} 7. h3 {[%emt 0:00:01]} e6 {[%emt 0:00:04]
} 8. Bd3 {[%emt 0:00:03]} Be7 {[%emt 0:00:02]} 9. O-O {[%emt 0:00:02]} O-O {
[%emt 0:00:04]} 10. c3 {[%emt 0:00:01]} b6 {[%emt 0:00:07]} 11. Ne5 {[%emt 0:
00:07]} Bb7 {[%emt 0:00:01]} 12. Bf4 {[%emt 0:00:11]} c5 {[%emt 0:00:03]} 13.
dxc5 {[%emt 0:00:08]} Bxc5 {[%emt 0:00:02]} 14. Be2 {[%emt 0:00:27]} Nd5 {
[%emt 0:00:05]} 15. Bg3 {[%emt 0:00:02]} Ne7 {[%emt 0:00:23]} 16. Nd7 {[%emt 0:
00:11]} Re8 {[%emt 0:00:07]} 17. Nxc5 {[%emt 0:00:02]} bxc5 {[%emt 0:00:01]}
18. Bf3 {[%emt 0:00:14]} Bxf3 {[%emt 0:00:03]} 19. Qxf3 {[%emt 0:00:01]} Qd5 {
[%emt 0:00:01]} 20. Qg4 {[%emt 0:00:14]} Qd2 {[%emt 0:00:30]} 21. Rab1 {
[%emt 0:00:17]} Nf5 {[%emt 0:00:15]} 22. Bf4 {[%emt 0:00:02]} Qd8 {[%emt 0:00:
08]} 23. Rfd1 {[%emt 0:00:02]} Qa5 {[%emt 0:00:01]} 24. a3 {[%emt 0:00:09]}
Rad8 {[%emt 0:00:02]} 25. Qf3 {[%emt 0:00:15]} Qb6 {[%emt 0:00:05]} 26. b4 {
[%emt 0:00:10]} Ne7 {[%emt 0:00:21]} 27. c4 {[%emt 0:00:17]} Nc6 {[%emt 0:00:
09]} 28. b5 {[%emt 0:00:02]} Nd4 {[%emt 0:00:03]} 29. Qe4 {[%emt 0:00:01]} f6 {
[%emt 0:00:27]} 30. a4 {[%emt 0:00:09]} e5 {[%emt 0:00:03]} 31. Be3 {[%emt 0:
00:01]} Qe6 {[%emt 0:00:02]} 32. Bxd4 {[%emt 0:00:07]} cxd4 {[%emt 0:00:24]}
33. c5 {[%emt 0:00:06]} Qc4 {[%emt 0:00:01]} 34. c6 {[%emt 0:00:06]} Qxa4 {
[%emt 0:00:09]} 35. c7 {[%emt 0:00:01]} Rc8 {[%emt 0:00:01]} 36. Qc6 {[%emt 0:
00:01]} Qa5 {[%emt 0:00:11]} 37. Rbc1 {[%emt 0:00:02]} Qb6 {[%emt 0:00:06]} 38.
Qxb6 {[%emt 0:00:11]} axb6 {[%emt 0:00:02]} 39. Rc6 {[%emt 0:00:00]} Re7 {
[%emt 0:00:03]} 40. Rdc1 {[%emt 0:00:01]} Kf8 {[%emt 0:00:02]} 41. Kf1 {
[%emt 0:00:02]} Rd7 {[%emt 0:00:01]} 42. Ke2 {[%emt 0:00:01]} Ke7 {[%emt 0:00:
01]} 43. Kd3 {[%emt 0:00:01]} Rd6 {[%emt 0:00:06]} 44. Ke4 {[%emt 0:00:02]} Kd7
{[%emt 0:00:02]} 45. Rxd6+ {[%emt 0:00:02]} Kxd6 {[%emt 0:00:01]} 46. Rc6+ {
[%emt 0:00:01]} Kd7 {[%emt 0:00:01]} 47. Rxb6 {[%emt 0:00:05]} Rxc7 {[%emt 0:
00:01]} 48. Ra6 {[%emt 0:00:02]} Rb7 {[%emt 0:00:01]} 49. Ra5 {[%emt 0:00:02]}
Kd6 {[%emt 0:00:02]} 50. Ra6+ {[%emt 0:00:02]} Kc5 {[%emt 0:00:01]} 51. b6 {
[%emt 0:00:03]} Rxb6 {[%emt 0:00:02]} 52. Ra7 {[%emt 0:00:00]} Rb2 {[%emt 0:00:
05]} 53. f3 {[%emt 0:00:03]} Rxg2 {[%emt 0:00:02]} 54. Rc7+ {[%emt 0:00:01]}
Kd6 {[%emt 0:00:00]} 55. Rc1 {[%emt 0:00:02]} Re2+ {[%emt 0:00:02]} 56. Kd3 {
[%emt 0:00:00]} Rh2 {[%emt 0:00:01]} 57. Rg1 {[%emt 0:00:02]} g6 {[%emt 0:00:
01]} 58. h4 {[%emt 0:00:01]} Rxh4 {[%emt 0:00:01]} 59. Ra1 {[%emt 0:00:02]} Rh3
{[%emt 0:00:02]} 60. Ke4 {[%emt 0:00:01]} Rh4+ {[%emt 0:00:01]} 61. Kd3 {
[%emt 0:00:01]} Ke6 {[%emt 0:00:01]} 62. Ra6+ {[%emt 0:00:00]} Kf5 {[%emt 0:00:
00]} 63. Ra1 {[%emt 0:00:02]} Rh3 {[%emt 0:00:02]} 64. Ke2 {[%emt 0:00:00]} Kf4
{[%emt 0:00:01]} 65. Rf1 {[%emt 0:00:02]} h5 {[%emt 0:00:02]} 66. Rf2 {[%emt 0:
00:03]} g5 {[%emt 0:00:01]} 67. Rf1 {[%emt 0:00:03]} d3+ {[%emt 0:00:01]} 68.
Kd2 {[%emt 0:00:04]} Rxf3 {[%emt 0:00:02]} 0-1